bitfinex/quotes_SOLUSD_20220129
["timestamp","ask_amount","ask_price","bid_price","bid_amount"]
[1643483998536,6.25,95.626,95.532,6.25]
[1643483998738,6.25,95.626,95.532,6.0]
[1643483998936,6.25,95.626,95.533,0.25]
[1643483999538,5.75,95.626,95.533,0.25]
[1643484000639,24.0424,95.625,95.531,6.0]
[1643484001041,26.99909142,95.625,95.53,6.0]
[1643484001240,35.2560381,95.614,95.529,6.0]
[1643484001440,35.2560381,95.614,95.52,6.0]
[1643484001640,6.0,95.604,95.516,6.0]
[1643484001840,0.25,95.603,95.516,6.0]
[1643484002543,0.25,95.603,95.517,2.43562168]
[1643484002945,0.25,95.613,95.527,6.0]
[1643484003343,0.25,95.613,95.528,0.25]
[1643484003744,35.2560381,95.614,95.528,0.25]
[1643484004342,6.0,95.604,95.528,0.25]
[1643484004744,35.2560381,95.614,95.528,0.25]
[1643484005148,6.0,95.604,95.528,0.25]
[1643484005344,0.25,95.603,95.528,0.25]
[1643484006571,0.25,95.613,95.528,0.25]
[1643484007572,6.0,95.604,95.528,0.25]
[1643484007771,0.25,95.603,95.528,0.25]
[1643484008974,0.25,95.613,95.528,0.25]
[1643484014578,6.0,95.604,95.528,0.25]
[1643484014779,0.25,95.603,95.528,0.25]
[1643484015784,0.25,95.603,95.521,6.0]
[1643484015981,24.61,95.603,95.521,6.0]
[1643484016180,24.61,95.603,95.517,6.0]
[1643484016382,40.47997696,95.592,95.514,6.0]
[1643484016580,6.0,95.582,95.513,6.0]
[1643484016783,0.25,95.581,95.512,6.0]
[1643484017182,0.25,95.581,95.506,6.0]
[1643484017382,6.25,95.581,95.513,6.0]
[1643484017982,0.25,95.581,95.506,6.0]
[1643484018384,0.25,95.59,95.506,6.0]
[1643484018584,0.25,95.59,95.507,0.25]
[1643484019784,0.25,95.59,95.51,1.42725727]
[1643484020186,0.25,95.59,95.52,6.0]
[1643484021886,0.25,95.59,95.521,0.25]
[1643484022086,0.25,95.59,95.527,6.0]
[1643484022286,0.25,95.59,95.528,0.25]
[1643484022486,0.25,95.59,95.527,6.0]
[1643484022886,6.0,95.581,95.527,5.85]
[1643484023089,6.0,95.581,95.513,1.42725727]
[1643484023286,6.0,95.581,95.511,1.42725727]
[1643484023287,0.25,95.58,95.511,1.42725727]
[1643484023486,0.25,95.58,95.509,1.42725727]
[1643484023887,0.25,95.58,95.512,1.42725727]
[1643484024287,0.25,95.59,95.522,6.0]
[1643484024487,0.25,95.59,95.513,1.42725727]
[1643484024689,6.0,95.581,95.523,6.0]
[1643484024887,0.25,95.58,95.514,1.42725727]
[1643484025087,0.25,95.58,95.524,6.0]
[1643484025689,0.25,95.58,95.521,6.0]
[1643484026091,0.25,95.58,95.526,6.0]
[1643484026990,0.25,95.58,95.515,1.42725727]
[1643484027191,6.25,95.58,95.525,6.0]
[1643484027792,0.25,95.58,95.524,6.0]
[1643484028192,0.25,95.58,95.517,1.42725727]
[1643484028392,0.25,95.58,95.527,6.0]
[1643484029494,0.25,95.58,95.518,1.42725727]
[1643484029794,0.25,95.58,95.528,6.0]
[1643484030297,0.25,95.58,95.526,6.0]
[1643484030697,0.25,95.58,95.515,1.42725727]
[1643484030995,0.25,95.58,95.525,6.0]
[1643484031797,0.25,95.58,95.502,6.0]
[1643484031798,0.25,95.58,95.535,6.0]
[1643484032399,0.25,95.58,95.525,6.0]
[1643484032825,0.25,95.58,95.515,1.42725727]
[1643484033100,0.25,95.58,95.526,6.0]
[1643484033703,0.25,95.58,95.525,6.0]
[1643484033905,0.25,95.58,95.526,6.0]
[1643484034109,0.25,95.58,95.525,6.0]
[1643484034502,0.25,95.58,95.524,6.0]
[1643484035301,0.25,95.58,95.511,1.42725727]
[1643484035602,0.25,95.58,95.521,6.0]
[1643484035802,0.25,95.59,95.522,0.25]
[1643484036002,0.25,95.59,95.521,6.0]
[1643484036406,0.25,95.59,95.526,6.0]
[1643484036702,0.25,95.59,95.523,6.0]
[1643484037104,0.25,95.59,95.525,6.0]
[1643484037303,0.25,95.59,95.523,6.0]
[1643484037501,0.25,95.59,95.526,6.0]
[1643484037910,6.0,95.581,95.526,6.0]
[1643484038110,6.0,95.581,95.523,6.0]
[1643484038311,0.25,95.58,95.523,6.0]
[1643484038915,0.25,95.58,95.521,6.0]
[1643484039113,0.25,95.58,95.522,6.0]
[1643484039712,0.25,95.58,95.521,6.0]
[1643484039913,0.25,95.58,95.522,6.0]
[1643484040540,0.25,95.58,95.519,6.0]
[1643484041339,0.25,95.58,95.517,6.0]
[1643484041738,0.25,95.58,95.507,1.42725727]
[1643484041937,6.25,95.58,95.516,6.0]
[1643484042438,6.25,95.58,95.506,1.42725727]
[1643484042637,6.25,95.58,95.485,0.1]
[1643484042638,36.00014351,95.569,95.504,1.42725727]
[1643484042839,0.25,95.568,95.504,1.42725727]
[1643484043040,6.0,95.559,95.504,1.42725727]
[1643484043240,23.1586,95.558,95.485,0.1]
[1643484043441,106.2,95.557,95.485,0.1]
[1643484043643,6.0,95.548,95.485,0.1]
[1643484043840,106.2,95.557,95.485,0.1]
[1643484043841,33.56549187,95.546,95.485,0.1]
[1643484044043,6.0,95.536,95.485,0.1]
[1643484044241,6.0,95.536,95.465,1.42725727]
[1643484044550,6.25,95.535,95.464,1.42725727]
[1643484044740,6.25,95.535,95.449,0.25]
[1643484044741,6.25,95.535,95.465,1.42725727]
[1643484045142,6.25,95.535,95.464,1.42725727]
[1643484045347,6.25,95.535,95.466,1.42725727]
[1643484045543,6.25,95.535,95.476,6.0]
[1643484046746,6.25,95.535,95.448,0.25]
[1643484046747,6.25,95.535,95.468,1.42725727]
[1643484046945,6.25,95.535,95.464,1.42725727]
[1643484047348,6.25,95.535,95.463,1.42725727]
[1643484047545,6.25,95.535,95.462,1.42725727]
[1643484048447,6.25,95.535,95.461,1.42725727]
[1643484048847,6.25,95.535,95.457,1.42725727]
[1643484049648,6.25,95.535,95.467,6.0]
[1643484050551,38.78838913,95.529,95.467,6.0]
[1643484050851,38.78838913,95.529,95.456,1.42725727]
[1643484051048,38.78838913,95.529,95.485,0.1]
[1643484051848,38.78838913,95.529,95.454,1.42725727]
[1643484052049,0.25,95.528,95.453,1.42725727]
[1643484052248,6.0,95.519,95.485,0.1]
[1643484052548,6.0,95.518,95.485,0.1]
[1643484052748,6.25,95.518,95.485,0.1]
[1643484053149,6.0,95.517,95.485,0.1]
[1643484053351,45.06876682,95.507,95.485,0.1]
[1643484053552,6.0,95.497,95.485,0.1]
[1643484053751,5.93370343,95.5,95.485,0.1]
[1643484053954,0.25,95.496,95.485,0.1]
[1643484054352,0.25,95.496,95.446,0.25]
[1643484054753,0.25,95.496,95.485,0.1]
[1643484055053,46.25568927,95.489,95.485,0.1]
[1643484055254,0.25,95.488,95.485,0.1]
[1643484056860,0.25,95.488,95.431,1.42725727]
[1643484057158,0.25,95.488,95.425,1.42725727]
[1643484057356,0.25,95.488,95.426,0.25]
[1643484057556,0.25,95.488,95.485,0.1]
[1643484058759,46.25568927,95.489,95.485,0.1]
[1643484059358,46.25568927,95.489,95.439,6.0]
[1643484059958,46.25568927,95.489,95.426,1.67725727]
[1643484059959,46.25568927,95.489,95.485,0.1]
[1643484060258,0.25,95.488,95.485,0.1]
[1643484060660,0.25,95.499,95.485,0.1]
[1643484061365,41.82818879,95.499,95.485,0.1]
[1643484061961,41.82818879,95.499,95.441,6.0]
[1643484062163,41.82818879,95.499,95.44,6.0]
[1643484062361,41.82818879,95.499,95.44,6.1]
[1643484062563,41.82818879,95.499,95.437,6.0]
[1643484062963,41.82818879,95.499,95.425,1.42725727]
[1643484063163,41.82818879,95.499,95.427,0.25]
[1643484064365,41.82818879,95.499,95.435,6.0]
[1643484064563,41.82818879,95.499,95.437,6.0]
[1643484064763,41.82818879,95.499,95.438,0.25]
[1643484065368,41.82818879,95.499,95.442,6.0]
[1643484065967,41.82818879,95.499,95.438,6.0]
[1643484066167,41.82818879,95.499,95.439,6.0]
[1643484066367,41.82818879,95.499,95.44,6.0]
[1643484066989,41.82818879,95.499,95.443,6.0]
[1643484067188,41.82818879,95.499,95.444,6.0]
[1643484068789,41.82818879,95.499,95.439,1.42725727]
[1643484069392,41.82818879,95.499,95.449,6.0]
[1643484069593,41.82818879,95.499,95.439,1.42725727]
[1643484070489,106.2,95.498,95.419,1.42725727]
[1643484070689,106.2,95.498,95.426,1.42725727]
[1643484070690,6.0,95.488,95.426,1.42725727]
[1643484070893,0.25,95.487,95.426,1.42725727]
[1643484071092,700.0,95.44,95.426,1.42725727]
[1643484071293,35.77269442,95.439,95.426,1.42725727]
[1643484071493,35.77269442,95.439,95.43,0.12155925]
[1643484072494,35.77269442,95.439,95.416,0.1]
[1643484072692,35.77269442,95.439,95.371,112.9]
[1643484072693,64.0,95.438,95.372,0.1]
[1643484072893,6.0,95.429,95.372,0.1]
[1643484073092,6.0,95.428,95.372,0.1]
[1643484073292,106.2,95.427,95.372,0.1]
[1643484073493,37.88588861,95.419,95.372,0.1]
[1643484073794,15.18,95.41,95.372,0.1]
[1643484073995,6.0,95.4,95.372,0.1]
[1643484074193,36.58265628,95.399,95.372,0.1]
[1643484074394,36.83265628,95.399,95.372,0.1]
[1643484074592,6.0,95.389,95.372,0.1]
[1643484074796,0.25,95.388,95.372,0.1]
[1643484075093,0.25,95.388,95.327,0.1]
[1643484075492,106.2,95.379,95.282,112.9]
[1643484075693,15.18,95.37,95.282,112.9]
[1643484075892,6.0,95.369,95.282,112.9]
[1643484076093,40.12160675,95.359,95.292,6.0]
[1643484076492,6.0,95.349,95.292,6.0]
[1643484077395,0.25,95.348,95.282,112.9]
[1643484077793,106.45,95.348,95.282,112.9]
[1643484077995,112.45,95.348,95.282,112.9]
[1643484078193,33.954741,95.339,95.282,112.9]
[1643484078394,6.25,95.338,95.282,112.9]
[1643484078596,6.0,95.328,95.236,112.9]
[1643484078798,0.25,95.327,95.236,112.9]
[1643484078994,0.25,95.327,95.189,190.1]
[1643484078995,9.22106694,95.327,95.268,389.7572573]
[1643484079295,9.22106694,95.327,95.195,112.9]
[1643484079296,6.0,95.32,95.195,112.9]
[1643484079494,15.18,95.31,95.195,112.9]
[1643484079696,15.18,95.3,95.159,112.9]
[1643484079904,0.25,95.299,95.173,16.29241578]
[1643484080197,2.16404962,95.298,95.173,16.29241578]
[1643484080395,0.25,95.297,95.159,112.9]
[1643484080598,6.0,95.288,95.16,0.1]
[1643484080798,204.92,95.28,95.16,0.1]
[1643484080998,220.688,95.28,95.16,0.1]
[1643484081197,8.48161926,95.269,95.16,34.12267991]
[1643484081399,204.92,95.26,95.16,0.1]
[1643484081602,5.9,95.25,95.128,2.43747886]
[1643484081801,15.18,95.24,95.128,2.43747886]
[1643484082205,0.25,95.239,95.125,16.29241578]
[1643484082408,2.9034973,95.239,95.13,42.29664082]
[1643484083006,2.95669142,95.238,95.125,16.29241578]
[1643484083206,2.95669142,95.238,95.113,112.9]
[1643484083406,6.0,95.228,95.113,112.9]
[1643484083606,21.18,95.22,95.094,121.94931255]
[1643484083809,0.25,95.219,95.115,6.0]
[1643484084007,8.73161926,95.219,95.109,43.4465663]
[1643484084208,6.0,95.217,95.109,43.4465663]
[1643484084512,15.78,95.2,95.077,112.9]
[1643484084710,6.0,95.209,95.096,2.42750222]
[1643484084909,6.0,95.19,95.096,2.42750222]
[1643484085109,21.18,95.19,95.079,2.88270028]
[1643484085308,2.02555426,95.189,95.08,41.19771342]
[1643484085508,6.0,95.179,95.08,41.19771342]
[1643484085708,15.18,95.17,95.08,41.19771342]
[1643484085909,7.69333366,95.169,95.08,41.19771342]
[1643484086109,6.0,95.159,95.08,41.19771342]
[1643484086310,0.25,95.158,95.09,6.0]
[1643484086509,15.18,95.17,95.091,6.0]
[1643484086710,0.25,95.168,95.12,0.1]
[1643484086910,15.18,95.17,95.12,0.1]
[1643484087311,189.74,95.21,95.12,0.1]
[1643484087512,8.87471174,95.199,95.12,0.1]
[1643484087710,8.87471174,95.199,95.09,6.0]
[1643484087911,6.0,95.189,95.092,6.0]
[1643484088111,1.38246178,95.179,95.091,0.1]
[1643484088310,1.38246178,95.179,95.091,0.25]
[1643484088510,1.38246178,95.179,95.12,0.1]
[1643484089815,0.25,95.178,95.12,0.1]
[1643484090221,0.25,95.178,95.091,0.25]
[1643484090618,6.0,95.188,95.091,0.25]
[1643484090619,6.0,95.188,95.092,2.42750213]
[1643484090820,6.0,95.188,95.093,0.25]
[1643484091019,15.18,95.2,95.102,6.0]
[1643484091223,15.18,95.2,95.12,0.1]
[1643484091419,8.469865,95.199,95.12,0.1]
[1643484092521,6.0,95.189,95.12,0.1]
[1643484092719,6.0,95.189,95.114,0.25]
[1643484092947,8.219865,95.199,95.114,0.25]
[1643484094448,0.25,95.198,95.114,0.25]
[1643484094649,0.25,95.198,95.12,0.1]
[1643484095349,0.25,95.198,95.114,0.25]
[1643484096555,0.25,95.198,95.12,0.1]
[1643484097954,0.25,95.198,95.114,0.25]
[1643484098156,2.95669142,95.197,95.114,0.25]
[1643484098454,0.25,95.196,95.113,6.0]
[1643484099555,0.25,95.198,95.113,6.0]
[1643484099756,0.25,95.198,95.12,0.1]
[1643484100456,0.25,95.198,95.114,0.25]
[1643484101659,0.25,95.198,95.113,6.0]
[1643484101860,0.25,95.198,95.114,0.25]
[1643484102260,106.45,95.198,95.12,0.1]
[1643484102960,0.25,95.198,95.113,6.0]
[1643484103762,0.25,95.198,95.114,0.25]
[1643484104162,0.25,95.198,95.113,6.0]
[1643484104163,2.95669142,95.197,95.113,6.0]
[1643484104363,6.0,95.189,95.12,0.1]
[1643484104563,15.18,95.18,95.12,0.1]
[1643484104963,6.0,95.17,95.12,0.1]
[1643484105265,0.25,95.169,95.12,0.1]
[1643484105464,3.20669142,95.169,95.093,38.78848275]
[1643484105663,3.20669142,95.169,95.094,0.1]
[1643484105865,2.95669142,95.168,95.094,0.1]
[1643484106063,2.95669142,95.168,95.103,6.0]
[1643484106263,0.25,95.167,95.103,6.0]
[1643484106664,2.95669142,95.166,95.103,6.0]
[1643484106863,0.25,95.165,95.103,6.0]
[1643484107064,0.1974,95.165,95.103,6.0]
[1643484107267,6.0,95.16,95.082,6.0]
[1643484107464,6.0,95.16,95.081,0.04156723]
[1643484107665,6.0,95.156,95.081,0.04156723]
[1643484107867,6.0,95.154,95.081,0.29156723]
[1643484108064,6.0,95.154,95.082,3.88609581]
[1643484108065,8.219865,95.153,95.082,3.88609581]
[1643484108265,15.18,95.15,95.082,3.88609581]
[1643484108467,6.0,95.143,95.082,3.88609581]
[1643484108667,6.0,95.14,95.081,0.04156723]
[1643484108866,0.25,95.139,95.081,0.04156723]
[1643484109067,17.11,95.139,95.081,0.04156723]
[1643484109266,2.03730852,95.138,95.081,0.04156723]
[1643484109668,0.25,95.137,95.081,0.04156723]
[1643484110471,2.95669142,95.136,95.081,0.04156723]
[1643484110868,0.25,95.135,95.081,0.04156723]
[1643484111869,0.25,95.137,95.081,0.04156723]
[1643484116476,1.78730852,95.138,95.081,0.04156723]
[1643484116684,1.78730852,95.138,95.081,42.4733428]
[1643484116877,1.78730852,95.138,95.082,3.98609581]
[1643484117078,1.78730852,95.138,95.083,3.88609581]
[1643484117279,2.95669142,95.137,95.084,3.88609581]
[1643484117482,14.01669142,95.137,95.081,0.04156723]
[1643484117881,3.20669142,95.136,95.081,0.04156723]
[1643484118283,2.95669142,95.135,95.081,0.04156723]
[1643484118882,0.25,95.134,95.081,0.04156723]
[1643484119900,0.25,95.137,95.081,0.04156723]
[1643484122700,6.0,95.128,95.081,0.04156723]
[1643484122902,0.25,95.127,95.081,0.04156723]
[1643484123903,11.67,95.127,95.081,0.04156723]
[1643484126204,11.42,95.127,95.081,0.04156723]
[1643484127411,0.25,95.126,95.081,0.04156723]
[1643484127718,27.46769117,95.174,95.081,0.04156723]
[1643484127909,22.9022,95.193,95.081,3.64780034]
[1643484128111,22.9022,95.193,95.091,6.0]
[1643484128321,22.9022,95.193,95.092,0.25]
[1643484128610,8.34264183,95.168,95.093,38.03551539]
[1643484128813,8.34264183,95.168,95.094,3.95623311]
[1643484129011,8.34264183,95.168,95.104,6.0]
[1643484129210,8.34264183,95.168,95.105,3.60623311]
[1643484129413,8.34264183,95.168,95.105,3.85623311]
[1643484129612,0.25,95.167,95.116,34.10134246]
[1643484129813,22.9022,95.193,95.117,0.35]
[1643484130014,15.18,95.21,95.127,106.2]
[1643484130215,4.29018481,95.309,95.127,106.2]
[1643484130216,15.18,95.24,95.127,106.2]
[1643484130416,15.18,95.24,95.137,6.0]
[1643484130613,15.18,95.24,95.138,9.59901974]
[1643484130818,8.52085575,95.259,95.14,37.47119718]
[1643484131017,8.52085575,95.259,95.15,6.0]
[1643484131214,8.52085575,95.259,95.151,106.2]
[1643484131413,8.52085575,95.259,95.151,112.45]
[1643484131614,8.52085575,95.259,95.151,114.90259396]
[1643484132015,8.52085575,95.259,95.152,2.45259396]
[1643484132216,15.18,95.31,95.153,3.5936816]
[1643484132420,189.74,95.35,95.168,0.31100407]
[1643484132421,15.18,95.32,95.168,0.31100407]
[1643484132616,23.0959,95.319,95.18,15.18]
[1643484132816,23.0959,95.319,95.181,0.25]
[1643484133120,23.0959,95.319,95.192,39.5582127]
[1643484133121,9.68171533,95.318,95.192,39.5582127]
[1643484133327,16.95932859,95.318,95.192,39.5582127]
[1643484133519,6.0,95.308,95.202,6.0]
[1643484133918,8.95669142,95.307,95.202,6.0]
[1643484134124,6.0,95.297,95.202,6.0]
[1643484134519,2.95669142,95.306,95.202,6.0]
[1643484134720,2.95669142,95.306,95.203,0.25]
[1643484134919,0.25,95.305,95.203,0.25]
[1643484135318,2.95669142,95.304,95.203,0.25]
[1643484135721,24.8785,95.303,95.202,6.0]
[1643484135920,24.8785,95.303,95.203,0.25]
[1643484136118,2.95669142,95.302,95.203,0.25]
[1643484136318,0.25,95.301,95.203,0.25]
[1643484136818,2.95669142,95.3,95.203,0.25]
[1643484137218,0.25,95.299,95.203,0.25]
[1643484138422,0.25,95.299,95.192,39.5582127]
[1643484138621,6.0,95.29,95.17,15.18]
[1643484138820,106.45,95.289,95.153,75.2965]
[1643484139120,6.0,95.279,95.153,75.2965]
[1643484139319,128.999,95.278,95.153,75.2965]
[1643484139521,6.0,95.268,95.164,41.01268687]
[1643484139819,23.4732,95.267,95.164,41.01268687]
[1643484140020,23.4732,95.267,95.174,6.0]
[1643484140222,26.42989142,95.267,95.174,6.0]
[1643484140420,2.95669142,95.266,95.175,0.25]
[1643484140620,6.0,95.256,95.175,0.25]
[1643484140823,0.25,95.255,95.175,0.25]
[1643484141222,0.25,95.255,95.117,0.1]
[1643484141422,0.25,95.255,95.101,46.921]
[1643484141423,15.18,95.25,95.101,46.921]
[1643484141623,6.0,95.24,95.111,6.0]
[1643484141825,15.18,95.23,95.111,6.1]
[1643484142027,6.0,95.22,95.111,6.0]
[1643484142226,15.18,95.21,95.112,36.8925064]
[1643484142427,15.18,95.21,95.113,0.1]
[1643484142628,6.0,95.2,95.122,6.0]
[1643484142828,0.25,95.199,95.122,6.0]
[1643484143027,9.20669142,95.199,95.091,6.0]
[1643484143228,2.95669142,95.198,95.091,6.0]
[1643484143429,0.25,95.197,95.091,6.0]
[1643484143631,0.25,95.197,95.092,38.95452351]
[1643484143830,0.25,95.197,95.093,0.1]
[1643484144029,0.25,95.197,95.102,6.0]
[1643484144429,0.25,95.197,95.103,0.25]
[1643484145129,6.0,95.188,95.103,0.25]
[1643484145388,0.25,95.187,95.103,0.25]
[1643484146930,0.25,95.196,95.102,6.0]
[1643484147130,6.0,95.187,95.102,6.0]
[1643484147332,0.25,95.186,95.102,6.0]
[1643484147532,6.0,95.185,95.102,6.0]
[1643484147935,6.0,95.185,95.103,0.25]
[1643484148331,129.8447,95.198,95.103,0.25]
[1643484148332,6.0,95.187,95.103,0.25]
[1643484148533,23.6447,95.198,95.104,2.46099445]
[1643484148731,15.18,95.21,95.104,2.46099445]
[1643484148934,15.18,95.21,95.114,6.0]
[1643484149132,15.18,95.21,95.115,41.01313912]
[1643484149333,0.25,95.209,95.116,0.1]
[1643484149533,0.25,95.209,95.125,6.0]
[1643484149934,6.0,95.223,95.126,0.25]
[1643484150335,24.8824,95.222,95.126,0.25]
[1643484150535,6.0,95.212,95.126,0.25]
[1643484150935,0.25,95.211,95.126,0.25]
[1643484151637,6.0,95.212,95.126,0.25]
[1643484152036,6.0,95.212,95.126,6.25]
[1643484152863,0.25,95.211,95.126,6.25]
[1643484154443,6.0,95.212,95.126,6.25]
[1643484154642,6.0,95.212,95.127,2.46099445]
[1643484154842,6.0,95.212,95.128,0.25]
[1643484155042,6.0,95.212,95.138,33.62215374]
[1643484155342,6.0,95.212,95.139,0.25]
[1643484155544,6.0,95.228,95.149,106.2]
[1643484155745,0.25,95.211,95.159,6.0]
[1643484155946,23.7192,95.255,95.16,39.82750603]
[1643484156145,23.7192,95.255,95.17,6.0]
[1643484156347,23.7192,95.255,95.171,0.25]
[1643484156748,23.7192,95.255,95.17,6.0]
[1643484157145,6.0,95.245,95.17,6.0]
[1643484157349,0.25,95.244,95.17,6.0]
[1643484157545,6.25,95.244,95.17,6.0]
[1643484158551,6.25,95.244,95.16,39.82750603]
[1643484158953,6.25,95.244,95.17,6.0]
[1643484161082,6.25,95.244,95.16,39.82750603]
[1643484161083,6.0,95.24,95.16,39.82750603]
[1643484161283,6.0,95.234,95.161,0.25]
[1643484161482,0.25,95.239,95.161,0.25]
[1643484161682,0.25,95.239,95.16,39.82750603]
[1643484161885,0.25,95.239,95.17,6.0]
[1643484162082,2.95669142,95.238,95.17,6.0]
[1643484162283,0.25,95.237,95.17,6.0]
[1643484162483,6.0,95.228,95.17,6.0]
[1643484162984,0.25,95.227,95.17,6.0]
[1643484163784,0.25,95.239,95.17,6.0]
[1643484163984,0.25,95.239,95.16,39.82750603]
[1643484164388,0.25,95.239,95.17,6.0]
[1643484165585,2.95669142,95.238,95.135,6.0]
[1643484165785,106.2,95.236,95.136,0.25]
[1643484165986,47.0364,95.237,95.136,0.25]
[1643484166186,0.25,95.235,95.137,2.46949528]
[1643484166387,47.0364,95.237,95.148,106.2]
[1643484166588,47.0364,95.237,95.158,6.0]
[1643484166786,47.0364,95.237,95.159,39.05410332]
[1643484167187,47.0364,95.237,95.169,6.0]
[1643484167388,47.0364,95.237,95.17,0.25]
[1643484167990,0.25,95.237,95.17,0.25]
[1643484168391,0.25,95.254,95.17,0.25]
[1643484168990,6.0,95.245,95.17,0.25]
[1643484169195,6.0,95.249,95.171,2.46949528]
[1643484169389,0.25,95.244,95.172,0.25]
[1643484169592,0.25,95.244,95.17,0.25]
[1643484170392,0.25,95.258,95.171,2.46949528]
[1643484170592,0.25,95.258,95.181,6.0]
[1643484170793,0.25,95.287,95.182,38.87565876]
[1643484170991,0.25,95.287,95.182,147.54515404]
[1643484171192,3.20669142,95.287,95.192,6.0]
[1643484171393,47.4724,95.298,95.193,0.25]
[1643484171592,47.4724,95.298,95.193,6.25]
[1643484172595,47.4724,95.298,95.194,2.46949528]
[1643484172900,47.4724,95.298,95.195,0.25]
[1643484173095,47.4724,95.298,95.204,6.0]
[1643484173295,0.25,95.297,95.205,43.43078669]
[1643484173695,0.25,95.297,95.215,6.0]
[1643484173895,0.25,95.297,95.216,0.25]
[1643484177104,6.0,95.288,95.216,0.25]
[1643484177308,0.25,95.287,95.216,0.25]
[1643484179429,0.25,95.287,95.215,6.0]
[1643484180230,0.25,95.287,95.205,43.18078669]
[1643484180428,0.25,95.287,95.206,0.25]
[1643484180631,0.25,95.287,95.215,6.0]
[1643484180829,0.25,95.287,95.216,0.25]
[1643484182033,0.25,95.287,95.215,6.0]
[1643484182434,0.25,95.287,95.216,0.25]
[1643484182631,0.25,95.287,95.215,6.0]
[1643484182831,6.0,95.288,95.216,0.25]
[1643484183032,6.0,95.288,95.215,6.0]
[1643484183432,6.0,95.288,95.216,0.25]
[1643484184233,0.25,95.287,95.216,0.25]
[1643484187440,2.95669142,95.325,95.217,2.48681041]
[1643484187643,2.95669142,95.325,95.228,106.2]
[1643484187840,15.18,95.33,95.23,106.2]
[1643484188140,15.18,95.33,95.24,6.0]
[1643484188342,15.18,95.33,95.241,0.25]
[1643484188541,15.18,95.33,95.241,6.25]
[1643484188742,0.25,95.317,95.241,6.25]
[1643484206492,0.25,95.317,95.241,6.0]
[1643484206694,6.0,95.308,95.211,1.42569402]
[1643484206893,1.70330336,95.307,95.198,1.42569402]
[1643484207095,106.2,95.296,95.181,1.42569402]
[1643484207295,1.45330336,95.285,95.176,1.42569402]
[1643484207497,0.25,95.295,95.127,133.71347741]
[1643484207498,1.45330336,95.269,95.153,1.42569402]
[1643484207697,107.65330336,95.269,95.168,46.06825151]
[1643484207895,6.0,95.259,95.168,46.06825151]
[1643484208098,15.18,95.25,95.168,46.06825151]
[1643484208299,0.25,95.249,95.168,46.06825151]
[1643484208596,6.0,95.24,95.168,46.06825151]
[1643484208797,0.25,95.239,95.168,46.06825151]
[1643484208996,6.25,95.239,95.168,46.06825151]